[Event "Titled Tuesday Blitz May 23 Late 2023"]
[White "Hajiyev, Kanan"]
[Black "Parizek, Vojtech"]
[WhiteFideId "13404148"]
[BlackFideId "360996"]
[WhiteElo "2103"]
[BlackElo "2115"]
[Result "1/2-1/2"]
[Round "04"]
[TimeControl "180+2"]
[Date "2023.05.23"]
[WhiteClock "0:00:40"]
[BlackClock "0:01:03"]

1. d4 {[%clk 0:03:00]}  d5 {[%clk 0:02:59]} 2. c4 {[%clk 0:03:01]}  c6 {[%clk 0:02:58]} 3. cxd5 {[%clk 0:03:02]}  cxd5 {[%clk 0:02:58]} 4. Nc3 {[%clk 0:03:02]}  Nf6 {[%clk 0:02:58]} 5. Nf3 {[%clk 0:03:03]}  Nc6 {[%clk 0:02:58]} 6. Bg5 {[%clk 0:03:03]}  e6 {[%clk 0:02:53]} 7. e3 {[%clk 0:03:00]}  Be7 {[%clk 0:02:52]} 8. Bd3 {[%clk 0:03:00]}  O-O {[%clk 0:02:52]} 9. O-O {[%clk 0:03:00]}  a6 {[%clk 0:02:51]} 10. Rc1 {[%clk 0:02:59]}  Bd7 {[%clk 0:02:47]} 11. Qc2 {[%clk 0:02:53]}  h6 {[%clk 0:02:45]} 12. Bh4 {[%clk 0:02:51]}  Nb4 {[%clk 0:02:42]} 13. Qb1 {[%clk 0:02:43]}  Nxd3 {[%clk 0:02:42]} 14. Qxd3 {[%clk 0:02:44]}  Rc8 {[%clk 0:02:35]} 15. Ne5 {[%clk 0:02:37]}  b5 {[%clk 0:02:27]} 16. a3 {[%clk 0:02:30]}  Rc7 {[%clk 0:02:04]} 17. f4 {[%clk 0:02:27]}  b4 {[%clk 0:01:57]} 18. axb4 {[%clk 0:02:09]}  Qc8 {[%clk 0:01:47]} 19. Nxd7 {[%clk 0:01:35]}  Qxd7 {[%clk 0:01:48]} 20. b5 {[%clk 0:01:34]}  axb5 {[%clk 0:01:42]} 21. Qxb5 {[%clk 0:01:34]}  Qxb5 {[%clk 0:01:34]} 22. Nxb5 {[%clk 0:01:35]}  Rb7 {[%clk 0:01:34]} 23. Rc7 {[%clk 0:01:36]}  Rxb5 {[%clk 0:01:33]} 24. Rxe7 {[%clk 0:01:35]}  Rxb2 {[%clk 0:01:34]} 25. f5 {[%clk 0:01:33]}  exf5 {[%clk 0:01:13]} 26. Bxf6 {[%clk 0:01:32]}  gxf6 {[%clk 0:01:12]} 27. Rxf5 {[%clk 0:01:31]}  Rc8 {[%clk 0:01:09]} 28. Rxf6 {[%clk 0:01:26]}  Rcc2 {[%clk 0:01:04]} 29. Rfxf7 {[%clk 0:01:13]}  Rxg2+ {[%clk 0:01:04]} 30. Kf1 {[%clk 0:01:09]}  Rxh2 {[%clk 0:01:04]} 31. Rg7+ {[%clk 0:00:57]}  Kh8 {[%clk 0:01:02]} 32. Rh7+ {[%clk 0:00:52]}  Kg8 {[%clk 0:01:02]} 33. Rhg7+ {[%clk 0:00:44]}  Kh8 {[%clk 0:01:03]} 34. Rh7+ {[%clk 0:00:43]}  Kg8 {[%clk 0:01:03]} 35. Rhg7+ {[%clk 0:00:40]} 1/2-1/2


[Site "https://www.chess.com"]

[Event "Titled Tuesday Blitz May 23 Late 2023"]
[White "Stork, Oliver"]
[Black "Ward, Ieuan C"]
[WhiteFideId "12955728"]
[BlackFideId "406627"]
[WhiteElo "2239"]
[BlackElo "2205"]
[Result "1/2-1/2"]
[Round "04"]
[TimeControl "180+2"]
[Date "2023.05.23"]
[WhiteClock "0:02:31"]
[BlackClock "0:02:25"]

1. e4 {[%clk 0:03:00]}  e5 {[%clk 0:02:57]} 2. Nf3 {[%clk 0:03:00]}  Nc6 {[%clk 0:02:56]} 3. Nc3 {[%clk 0:03:00]}  Nf6 {[%clk 0:02:55]} 4. Bb5 {[%clk 0:03:00]}  Bb4 {[%clk 0:02:55]} 5. O-O {[%clk 0:03:00]}  Bxc3 {[%clk 0:02:54]} 6. bxc3 {[%clk 0:02:55]}  O-O {[%clk 0:02:49]} 7. d3 {[%clk 0:02:54]}  d6 {[%clk 0:02:47]} 8. Bg5 {[%clk 0:02:53]}  Bg4 {[%clk 0:02:45]} 9. h3 {[%clk 0:02:53]}  Bxf3 {[%clk 0:02:42]} 10. Qxf3 {[%clk 0:02:53]}  Qe7 {[%clk 0:02:38]} 11. Rfe1 {[%clk 0:02:43]}  h6 {[%clk 0:02:36]} 12. Bxf6 {[%clk 0:02:39]}  Qxf6 {[%clk 0:02:36]} 13. Qxf6 {[%clk 0:02:38]}  gxf6 {[%clk 0:02:37]} 14. Bxc6 {[%clk 0:02:38]}  bxc6 {[%clk 0:02:37]} 15. Rab1 {[%clk 0:02:39]}  Rab8 {[%clk 0:02:37]} 16. Rb3 {[%clk 0:02:38]}  Rb6 {[%clk 0:02:36]} 17. Reb1 {[%clk 0:02:38]}  Rfb8 {[%clk 0:02:36]} 18. Rxb6 {[%clk 0:02:38]}  Rxb6 {[%clk 0:02:36]} 19. Rxb6 {[%clk 0:02:38]}  cxb6 {[%clk 0:02:35]} 20. Kf1 {[%clk 0:02:37]}  Kg7 {[%clk 0:02:36]} 21. Ke2 {[%clk 0:02:37]}  Kg6 {[%clk 0:02:37]} 22. Kf3 {[%clk 0:02:38]}  f5 {[%clk 0:02:25]} 23. c4 {[%clk 0:02:31]} 1/2-1/2


[Site "https://www.chess.com"]

[Event "Titled Tuesday Blitz May 23 Late 2023"]
[White "Ziatdinov, Raset"]
[Black "Kovacevic, Radmila"]
[WhiteFideId "2015323"]
[BlackFideId "933171"]
[WhiteElo "2220"]
[BlackElo "2194"]
[Result "0-1"]
[Round "04"]
[TimeControl "180+2"]
[Date "2023.05.23"]
[WhiteClock "0:01:23"]
[BlackClock "0:02:23"]

1. e4 {[%clk 0:02:57]}  e5 {[%clk 0:03:00]} 2. Nf3 {[%clk 0:02:57]}  d5 {[%clk 0:03:00]} 3. exd5 {[%clk 0:02:56]}  e4 {[%clk 0:03:00]} 4. Qe2 {[%clk 0:02:56]}  Nf6 {[%clk 0:03:01]} 5. Nc3 {[%clk 0:02:57]}  Be7 {[%clk 0:03:01]} 6. Nxe4 {[%clk 0:02:57]}  O-O {[%clk 0:03:00]} 7. d3 {[%clk 0:02:56]}  Nxd5 {[%clk 0:03:00]} 8. Bd2 {[%clk 0:02:56]}  f5 {[%clk 0:02:59]} 9. Nc3 {[%clk 0:02:55]}  Bf6 {[%clk 0:02:58]} 10. Qd1 {[%clk 0:02:48]}  Bxc3 {[%clk 0:02:53]} 11. bxc3 {[%clk 0:02:48]}  Re8+ {[%clk 0:02:52]} 12. Be2 {[%clk 0:02:48]}  Qe7 {[%clk 0:02:52]} 13. d4 {[%clk 0:02:47]}  f4 {[%clk 0:02:47]} 14. Ne5 {[%clk 0:02:47]}  Nc6 {[%clk 0:02:38]} 15. Nd3 {[%clk 0:02:30]}  f3 {[%clk 0:02:35]} 16. gxf3 {[%clk 0:02:30]}  Bh3 {[%clk 0:02:31]} 17. c4 {[%clk 0:02:25]}  Nxd4 {[%clk 0:02:30]} 18. Be3 {[%clk 0:01:25]}  Nxe3 {[%clk 0:02:24]} 19. fxe3 {[%clk 0:01:23]}  Qxe3 {[%clk 0:02:23]} 0-1


[Site "https://www.chess.com"]

[Event "Titled Tuesday Blitz May 23 Late 2023"]
[White "Arias Igual, Alejandro"]
[Black "Davidson, Kevin"]
[WhiteFideId "2254905"]
[BlackFideId "2056810"]
[WhiteElo "2179"]
[BlackElo "2151"]
[Result "0-1"]
[Round "04"]
[TimeControl "180+2"]
[Date "2023.05.23"]
[WhiteClock "0:00:00"]
[BlackClock "0:00:09"]

1. e4 {[%clk 0:03:00]}  c5 {[%clk 0:02:58]} 2. Nf3 {[%clk 0:03:00]}  d6 {[%clk 0:02:58]} 3. Bb5+ {[%clk 0:03:00]}  Nd7 {[%clk 0:02:57]} 4. a4 {[%clk 0:02:59]}  Nf6 {[%clk 0:02:57]} 5. Nc3 {[%clk 0:02:59]}  a6 {[%clk 0:02:57]} 6. Be2 {[%clk 0:02:58]}  e6 {[%clk 0:02:54]} 7. a5 {[%clk 0:02:48]}  Be7 {[%clk 0:02:54]} 8. O-O {[%clk 0:02:45]}  O-O {[%clk 0:02:54]} 9. Re1 {[%clk 0:02:38]}  Qc7 {[%clk 0:02:43]} 10. d3 {[%clk 0:02:28]}  Nb8 {[%clk 0:02:39]} 11. d4 {[%clk 0:02:11]}  Nc6 {[%clk 0:02:29]} 12. d5 {[%clk 0:02:04]}  exd5 {[%clk 0:02:14]} 13. exd5 {[%clk 0:02:00]}  Nxa5 {[%clk 0:02:13]} 14. h3 {[%clk 0:01:56]}  Bf5 {[%clk 0:02:06]} 15. Nh4 {[%clk 0:01:46]}  Bg6 {[%clk 0:01:45]} 16. f4 {[%clk 0:01:24]}  Nd7 {[%clk 0:01:36]} 17. Nxg6 {[%clk 0:01:18]}  hxg6 {[%clk 0:01:36]} 18. Bd3 {[%clk 0:01:01]}  Bh4 {[%clk 0:01:25]} 19. Rf1 {[%clk 0:00:54]}  c4 {[%clk 0:01:10]} 20. Be2 {[%clk 0:00:53]}  b5 {[%clk 0:01:08]} 21. Be3 {[%clk 0:00:46]}  Nb7 {[%clk 0:00:54]} 22. Bf3 {[%clk 0:00:36]}  Nbc5 {[%clk 0:00:53]} 23. Kh1 {[%clk 0:00:35]}  Rfe8 {[%clk 0:00:50]} 24. Bg1 {[%clk 0:00:32]}  Bf6 {[%clk 0:00:46]} 25. Qd2 {[%clk 0:00:31]}  b4 {[%clk 0:00:43]} 26. Na4 {[%clk 0:00:31]}  Nxa4 {[%clk 0:00:40]} 27. Rxa4 {[%clk 0:00:32]}  a5 {[%clk 0:00:41]} 28. c3 {[%clk 0:00:29]}  Nc5 {[%clk 0:00:39]} 29. Bxc5 {[%clk 0:00:23]}  Qxc5 {[%clk 0:00:39]} 30. Rfa1 {[%clk 0:00:18]}  bxc3 {[%clk 0:00:36]} 31. bxc3 {[%clk 0:00:19]}  Re3 {[%clk 0:00:25]} 32. R4a3 {[%clk 0:00:14]}  Rd3 {[%clk 0:00:20]} 33. Qe2 {[%clk 0:00:11]}  Rxc3 {[%clk 0:00:15]} 34. Rxc3 {[%clk 0:00:10]}  Bxc3 {[%clk 0:00:16]} 35. Rc1 {[%clk 0:00:11]}  Qd4 {[%clk 0:00:10]} 36. Qc2 {[%clk 0:00:07]}  Bb2 {[%clk 0:00:08]} 37. Qxc4 {[%clk 0:00:07]}  Qxc4 {[%clk 0:00:08]} 38. Rxc4 {[%clk 0:00:08]}  a4 {[%clk 0:00:09]} 39. Bd1 {[%clk 0:00:02]}  a3 {[%clk 0:00:08]} 40. Bb3 {[%clk 0:00:02]}  a2 {[%clk 0:00:09]} 41. Bxa2 {[%clk 0:00:01]}  Rxa2 {[%clk 0:00:10]} 42. Rc8+ {[%clk 0:00:02]}  Kh7 {[%clk 0:00:10]} 43. Rd8 {[%clk 0:00:02]}  Ba3 {[%clk 0:00:09]} 44. Rd7 {[%clk 0:00:02]}  f6 {[%clk 0:00:09]} 45. Kh2 {[%clk 0:00:02]}  Rd2 {[%clk 0:00:09]} 46. Kg3 {[%clk 0:00:01]}  Rxd5 {[%clk 0:00:09]} 47. Ra7 {[%clk 0:00:00]}  Bc5 {[%clk 0:00:09]} 0-1


[Site "https://www.chess.com"]

[Event "Titled Tuesday Blitz May 23 Late 2023"]
[White "Alimpic, Aleksa"]
[Black "Antonova, Nadezhda"]
[WhiteFideId "974323"]
[BlackFideId "14700182"]
[WhiteElo "2298"]
[BlackElo "1799"]
[Result "1-0"]
[Round "04"]
[TimeControl "180+2"]
[Date "2023.05.23"]
[WhiteClock "0:02:03"]
[BlackClock "0:02:13"]

1. Nf3 {[%clk 0:03:00]}  Nf6 {[%clk 0:02:57]} 2. g3 {[%clk 0:03:01]}  g6 {[%clk 0:02:58]} 3. b3 {[%clk 0:03:01]}  Bg7 {[%clk 0:02:59]} 4. Bb2 {[%clk 0:03:02]}  O-O {[%clk 0:02:59]} 5. Bg2 {[%clk 0:03:02]}  d6 {[%clk 0:02:59]} 6. d4 {[%clk 0:03:02]}  c5 {[%clk 0:02:58]} 7. c4 {[%clk 0:02:51]}  cxd4 {[%clk 0:02:56]} 8. Nxd4 {[%clk 0:02:52]}  d5 {[%clk 0:02:56]} 9. cxd5 {[%clk 0:02:50]}  Nxd5 {[%clk 0:02:55]} 10. O-O {[%clk 0:02:49]}  e5 {[%clk 0:02:49]} 11. Nb5 {[%clk 0:02:44]}  Be6 {[%clk 0:02:37]} 12. N1c3 {[%clk 0:02:38]}  Nxc3 {[%clk 0:02:33]} 13. Nxc3 {[%clk 0:02:38]}  Qb6 {[%clk 0:02:30]} 14. Na4 {[%clk 0:02:33]}  Qa6 {[%clk 0:02:28]} 15. Nc5 {[%clk 0:02:32]}  Qb6 {[%clk 0:02:28]} 16. Bxb7 {[%clk 0:02:03]}  Qxc5 {[%clk 0:02:22]} 17. Bxa8 {[%clk 0:02:03]}  Nc6 {[%clk 0:02:13]} 18. Rc1 {[%clk 0:02:03]} 1-0


[Site "https://www.chess.com"]

[Event "Titled Tuesday Blitz May 23 Late 2023"]
[White "Sarkar, Justin"]
[Black "Florianovitz, Derlei Alex"]
[WhiteFideId "2010011"]
[BlackFideId "2114178"]
[WhiteElo "2168"]
[BlackElo "1953"]
[Result "1-0"]
[Round "04"]
[TimeControl "180+2"]
[Date "2023.05.23"]
[WhiteClock "0:00:05"]
[BlackClock "0:00:24"]

1. e4 {[%clk 0:02:43]}  e6 {[%clk 0:02:58]} 2. d4 {[%clk 0:02:38]}  d5 {[%clk 0:02:57]} 3. e5 {[%clk 0:02:38]}  c5 {[%clk 0:02:57]} 4. Nf3 {[%clk 0:02:38]}  Nc6 {[%clk 0:02:58]} 5. Bd3 {[%clk 0:02:36]}  cxd4 {[%clk 0:02:57]} 6. O-O {[%clk 0:02:35]}  Qc7 {[%clk 0:02:57]} 7. Bf4 {[%clk 0:02:12]}  h6 {[%clk 0:02:52]} 8. Re1 {[%clk 0:02:01]}  g5 {[%clk 0:02:52]} 9. Bg3 {[%clk 0:02:00]}  Bg7 {[%clk 0:02:52]} 10. Nbd2 {[%clk 0:01:46]}  Nb4 {[%clk 0:02:47]} 11. Nxd4 {[%clk 0:01:37]}  Nxd3 {[%clk 0:02:46]} 12. cxd3 {[%clk 0:01:36]}  a6 {[%clk 0:02:44]} 13. Qb3 {[%clk 0:00:47]}  Ne7 {[%clk 0:02:37]} 14. Rac1 {[%clk 0:00:44]}  Qd8 {[%clk 0:02:36]} 15. h4 {[%clk 0:00:36]}  g4 {[%clk 0:02:29]} 16. h5 {[%clk 0:00:33]}  O-O {[%clk 0:02:10]} 17. Qd1 {[%clk 0:00:23]}  Nf5 {[%clk 0:02:03]} 18. Qxg4 {[%clk 0:00:15]}  Qg5 {[%clk 0:02:03]} 19. Qxg5 {[%clk 0:00:11]}  hxg5 {[%clk 0:02:04]} 20. Nxf5 {[%clk 0:00:09]}  exf5 {[%clk 0:02:05]} 21. f4 {[%clk 0:00:08]}  g4 {[%clk 0:01:59]} 22. Rc7 {[%clk 0:00:06]}  b5 {[%clk 0:01:58]} 23. Bh4 {[%clk 0:00:03]}  Be6 {[%clk 0:01:57]} 24. Bg5 {[%clk 0:00:02]}  Rfc8 {[%clk 0:01:57]} 25. Rec1 {[%clk 0:00:02]}  Rxc7 {[%clk 0:01:57]} 26. Rxc7 {[%clk 0:00:02]}  Rc8 {[%clk 0:01:56]} 27. Rxc8+ {[%clk 0:00:02]}  Bxc8 {[%clk 0:01:57]} 28. Kf2 {[%clk 0:00:02]}  Bf8 {[%clk 0:01:54]} 29. Nb3 {[%clk 0:00:01]}  Be6 {[%clk 0:01:49]} 30. Ke3 {[%clk 0:00:02]}  Bb4 {[%clk 0:01:45]} 31. Kd4 {[%clk 0:00:02]}  a5 {[%clk 0:01:41]} 32. Nc5 {[%clk 0:00:01]}  Bc8 {[%clk 0:01:10]} 33. a3 {[%clk 0:00:01]}  Be1 {[%clk 0:01:08]} 34. Kxd5 {[%clk 0:00:01]}  Bd2 {[%clk 0:00:54]} 35. Kc6 {[%clk 0:00:01]}  b4 {[%clk 0:00:54]} 36. axb4 {[%clk 0:00:01]}  axb4 {[%clk 0:00:55]} 37. b3 {[%clk 0:00:01]}  Be3 {[%clk 0:00:49]} 38. Kc7 {[%clk 0:00:02]}  Be6 {[%clk 0:00:21]} 39. Nxe6 {[%clk 0:00:02]}  fxe6 {[%clk 0:00:21]} 40. Kd7 {[%clk 0:00:02]}  Kf7 {[%clk 0:00:22]} 41. h6 {[%clk 0:00:02]}  Bd2 {[%clk 0:00:20]} 42. h7 {[%clk 0:00:02]}  Bxf4 {[%clk 0:00:21]} 43. Bxf4 {[%clk 0:00:02]}  Kg7 {[%clk 0:00:21]} 44. Kxe6 {[%clk 0:00:02]}  Kxh7 {[%clk 0:00:22]} 45. Kxf5 {[%clk 0:00:02]}  Kg7 {[%clk 0:00:22]} 46. Kxg4 {[%clk 0:00:03]}  Kf7 {[%clk 0:00:23]} 47. d4 {[%clk 0:00:03]}  Ke6 {[%clk 0:00:24]} 48. Bd2 {[%clk 0:00:04]}  Kd5 {[%clk 0:00:25]} 49. Bxb4 {[%clk 0:00:04]}  Kxd4 {[%clk 0:00:26]} 50. e6 {[%clk 0:00:04]}  Ke5 {[%clk 0:00:27]} 51. e7 {[%clk 0:00:05]}  Kd4 {[%clk 0:00:27]} 52. e8=Q {[%clk 0:00:05]}  Kd3 {[%clk 0:00:28]} 53. Bc5 {[%clk 0:00:05]}  Kc3 {[%clk 0:00:28]} 54. Qe3+ {[%clk 0:00:05]}  Kb2 {[%clk 0:00:28]} 55. Bd4+ {[%clk 0:00:05]}  Ka2 {[%clk 0:00:29]} 56. b4 {[%clk 0:00:05]}  Kb1 {[%clk 0:00:24]} 57. Qe2 {[%clk 0:00:05]} 1-0


[Site "https://www.chess.com"]

[Event "Titled Tuesday Blitz May 23 Late 2023"]
[White "Rodriguez Santiago, Jaime"]
[Black "Essa, Naseem Ahmed"]
[WhiteFideId "3100898"]
[BlackFideId "14316560"]
[WhiteElo "2025"]
[BlackElo "1883"]
[Result "1-0"]
[Round "04"]
[TimeControl "180+2"]
[Date "2023.05.23"]
[WhiteClock "0:00:42"]
[BlackClock "0:00:00"]

1. c4 {[%clk 0:03:00]}  e5 {[%clk 0:02:56]} 2. Nc3 {[%clk 0:03:00]}  Nf6 {[%clk 0:02:56]} 3. g3 {[%clk 0:02:59]}  c5 {[%clk 0:02:50]} 4. Bg2 {[%clk 0:02:58]}  Nc6 {[%clk 0:02:50]} 5. e4 {[%clk 0:02:57]}  g6 {[%clk 0:02:49]} 6. Nge2 {[%clk 0:02:57]}  Bg7 {[%clk 0:02:50]} 7. O-O {[%clk 0:02:58]}  O-O {[%clk 0:02:51]} 8. d3 {[%clk 0:02:58]}  d6 {[%clk 0:02:47]} 9. h3 {[%clk 0:02:58]}  Ne8 {[%clk 0:02:47]} 10. Be3 {[%clk 0:02:56]}  f5 {[%clk 0:02:42]} 11. f4 {[%clk 0:02:51]}  Nf6 {[%clk 0:02:28]} 12. Nd5 {[%clk 0:02:38]}  Nd4 {[%clk 0:02:13]} 13. Nxd4 {[%clk 0:02:29]}  cxd4 {[%clk 0:02:12]} 14. Bd2 {[%clk 0:02:30]}  Be6 {[%clk 0:01:47]} 15. Rc1 {[%clk 0:01:58]}  Rb8 {[%clk 0:01:45]} 16. fxe5 {[%clk 0:01:53]}  dxe5 {[%clk 0:01:45]} 17. Bb4 {[%clk 0:01:52]}  Rf7 {[%clk 0:01:26]} 18. Nxf6+ {[%clk 0:01:37]}  Bxf6 {[%clk 0:01:00]} 19. exf5 {[%clk 0:01:23]}  gxf5 {[%clk 0:01:01]} 20. Qh5 {[%clk 0:01:19]}  Bg5 {[%clk 0:00:59]} 21. Rce1 {[%clk 0:01:16]}  Be3+ {[%clk 0:00:58]} 22. Kh1 {[%clk 0:01:15]}  Rg7 {[%clk 0:00:48]} 23. Qf3 {[%clk 0:01:05]}  Qg5 {[%clk 0:00:31]} 24. Bd6 {[%clk 0:00:57]}  Re8 {[%clk 0:00:08]} 25. Bxe5 {[%clk 0:00:56]}  Rf7 {[%clk 0:00:04]} 26. Bf4 {[%clk 0:00:56]}  Qg6 {[%clk 0:00:03]} 27. Bxe3 {[%clk 0:00:55]}  dxe3 {[%clk 0:00:03]} 28. Rxe3 {[%clk 0:00:55]}  f4 {[%clk 0:00:02]} 29. gxf4 {[%clk 0:00:54]}  Ref8 {[%clk 0:00:03]} 30. Re4 {[%clk 0:00:45]}  Bf5 {[%clk 0:00:02]} 31. Rd4 {[%clk 0:00:45]}  Bxd3 {[%clk 0:00:02]} 32. Qxd3 {[%clk 0:00:44]}  Qh5 {[%clk 0:00:00]} 33. Bd5 {[%clk 0:00:42]} 1-0


[Site "https://www.chess.com"]

[Event "Titled Tuesday Blitz May 23 Late 2023"]
[White "Evdokimov, Alexey"]
[Black "Blackwhite017"]
[WhiteFideId "24162450"]
[WhiteElo "2154"]
[BlackElo "2090"]
[Result "1-0"]
[Round "04"]
[TimeControl "180+2"]
[Date "2023.05.23"]
[WhiteClock "0:02:36"]
[BlackClock "0:01:58"]

1. e4 {[%clk 0:03:00]}  c5 {[%clk 0:02:59]} 2. Nf3 {[%clk 0:03:00]}  Nc6 {[%clk 0:02:59]} 3. d4 {[%clk 0:03:01]}  cxd4 {[%clk 0:02:59]} 4. Nxd4 {[%clk 0:03:02]}  g6 {[%clk 0:02:58]} 5. Nc3 {[%clk 0:03:01]}  Bg7 {[%clk 0:02:57]} 6. Be3 {[%clk 0:03:02]}  Nf6 {[%clk 0:02:57]} 7. Nxc6 {[%clk 0:03:00]}  bxc6 {[%clk 0:02:56]} 8. e5 {[%clk 0:03:00]}  Ng8 {[%clk 0:02:56]} 9. Bd4 {[%clk 0:02:57]}  f6 {[%clk 0:02:50]} 10. f4 {[%clk 0:02:56]}  fxe5 {[%clk 0:02:36]} 11. fxe5 {[%clk 0:02:57]}  Qa5 {[%clk 0:02:34]} 12. Bc4 {[%clk 0:02:56]}  Bxe5 {[%clk 0:02:21]} 13. O-O {[%clk 0:02:56]}  Bxd4+ {[%clk 0:02:13]} 14. Qxd4 {[%clk 0:02:57]}  Qb6 {[%clk 0:02:14]} 15. Rad1 {[%clk 0:02:53]}  Qxd4+ {[%clk 0:02:13]} 16. Rxd4 {[%clk 0:02:53]}  d5 {[%clk 0:02:08]} 17. Bb3 {[%clk 0:02:43]}  e5 {[%clk 0:01:58]} 18. Re1 {[%clk 0:02:36]} 1-0


[Site "https://www.chess.com"]

[Event "Titled Tuesday Blitz May 23 Late 2023"]
[White "Hartikainen, Jarmo"]
[Black "Rodriguez Polo, Mateo"]
[WhiteFideId "503134"]
[BlackFideId "24509396"]
[WhiteElo "2070"]
[BlackElo "2117"]
[Result "1/2-1/2"]
[Round "04"]
[TimeControl "180+2"]
[Date "2023.05.23"]
[WhiteClock "0:00:06"]
[BlackClock "0:00:13"]

1. e4 {[%clk 0:03:00]}  e5 {[%clk 0:02:57]} 2. Nf3 {[%clk 0:03:00]}  Nc6 {[%clk 0:02:58]} 3. d4 {[%clk 0:03:00]}  exd4 {[%clk 0:02:59]} 4. Nxd4 {[%clk 0:03:01]}  Nf6 {[%clk 0:02:59]} 5. Nxc6 {[%clk 0:03:00]}  bxc6 {[%clk 0:03:00]} 6. e5 {[%clk 0:03:01]}  Qe7 {[%clk 0:03:01]} 7. Qe2 {[%clk 0:03:01]}  Nd5 {[%clk 0:03:01]} 8. Nd2 {[%clk 0:03:01]}  f6 {[%clk 0:02:49]} 9. exf6 {[%clk 0:02:58]}  Qxe2+ {[%clk 0:02:48]} 10. Bxe2 {[%clk 0:02:57]}  Nxf6 {[%clk 0:02:49]} 11. O-O {[%clk 0:02:48]}  Bc5 {[%clk 0:02:48]} 12. Bf3 {[%clk 0:02:26]}  O-O {[%clk 0:02:48]} 13. Re1 {[%clk 0:02:10]}  d5 {[%clk 0:02:48]} 14. Nb3 {[%clk 0:02:10]}  Bb6 {[%clk 0:02:48]} 15. Be3 {[%clk 0:02:10]}  Bf5 {[%clk 0:02:43]} 16. c3 {[%clk 0:01:45]}  Rae8 {[%clk 0:02:42]} 17. Bxb6 {[%clk 0:01:36]}  cxb6 {[%clk 0:02:43]} 18. a4 {[%clk 0:00:58]}  a5 {[%clk 0:02:32]} 19. Nd4 {[%clk 0:00:55]}  Bd7 {[%clk 0:02:31]} 20. Kf1 {[%clk 0:00:52]}  c5 {[%clk 0:02:31]} 21. Nb5 {[%clk 0:00:43]}  Bxb5+ {[%clk 0:02:29]} 22. axb5 {[%clk 0:00:43]}  Kf7 {[%clk 0:02:29]} 23. h3 {[%clk 0:00:30]}  Rxe1+ {[%clk 0:02:28]} 24. Kxe1 {[%clk 0:00:24]}  Re8+ {[%clk 0:02:29]} 25. Kd2 {[%clk 0:00:25]}  Ne4+ {[%clk 0:02:22]} 26. Bxe4 {[%clk 0:00:24]}  Rxe4 {[%clk 0:02:23]} 27. f3 {[%clk 0:00:23]}  Rf4 {[%clk 0:02:13]} 28. Ke3 {[%clk 0:00:20]}  g5 {[%clk 0:02:12]} 29. g3 {[%clk 0:00:20]}  Rf6 {[%clk 0:02:03]} 30. Rf1 {[%clk 0:00:20]}  Re6+ {[%clk 0:02:02]} 31. Kd3 {[%clk 0:00:20]}  Kf6 {[%clk 0:02:02]} 32. f4 {[%clk 0:00:20]}  gxf4 {[%clk 0:01:54]} 33. Rxf4+ {[%clk 0:00:20]}  Kg6 {[%clk 0:01:52]} 34. Rg4+ {[%clk 0:00:20]}  Kf7 {[%clk 0:01:50]} 35. Rf4+ {[%clk 0:00:21]}  Rf6 {[%clk 0:01:50]} 36. Rxf6+ {[%clk 0:00:12]}  Kxf6 {[%clk 0:01:51]} 37. b3 {[%clk 0:00:11]}  Kf5 {[%clk 0:01:48]} 38. Ke3 {[%clk 0:00:10]}  Ke5 {[%clk 0:01:47]} 39. Kd3 {[%clk 0:00:10]}  h5 {[%clk 0:01:47]} 40. Ke3 {[%clk 0:00:10]}  Kf5 {[%clk 0:01:47]} 41. Kd3 {[%clk 0:00:10]}  Kg5 {[%clk 0:01:41]} 42. Ke3 {[%clk 0:00:10]}  Kg6 {[%clk 0:01:35]} 43. Kd3 {[%clk 0:00:11]}  Kf6 {[%clk 0:01:34]} 44. Ke3 {[%clk 0:00:11]}  Ke6 {[%clk 0:01:34]} 45. Kd3 {[%clk 0:00:11]}  Ke5 {[%clk 0:01:16]} 46. Ke3 {[%clk 0:00:11]}  Kf5 {[%clk 0:01:17]} 47. Kd3 {[%clk 0:00:12]}  Kg5 {[%clk 0:01:01]} 48. Ke3 {[%clk 0:00:12]}  Kg6 {[%clk 0:01:01]} 49. Kd3 {[%clk 0:00:12]}  Kf6 {[%clk 0:01:01]} 50. Ke3 {[%clk 0:00:12]}  Ke6 {[%clk 0:01:01]} 51. Kd3 {[%clk 0:00:13]}  Kd6 {[%clk 0:01:01]} 52. Ke3 {[%clk 0:00:13]}  c4 {[%clk 0:00:54]} 53. bxc4 {[%clk 0:00:13]}  dxc4 {[%clk 0:00:29]} 54. Kd2 {[%clk 0:00:12]}  Ke5 {[%clk 0:00:27]} 55. Ke3 {[%clk 0:00:06]}  Kd5 {[%clk 0:00:22]} 56. g4 {[%clk 0:00:05]}  hxg4 {[%clk 0:00:22]} 57. hxg4 {[%clk 0:00:05]}  Ke5 {[%clk 0:00:23]} 58. g5 {[%clk 0:00:05]}  Kf5 {[%clk 0:00:23]} 59. Kd4 {[%clk 0:00:06]}  Kxg5 {[%clk 0:00:21]} 60. Kxc4 {[%clk 0:00:06]}  Kf5 {[%clk 0:00:20]} 61. Kd5 {[%clk 0:00:05]}  Kf6 {[%clk 0:00:15]} 62. c4 {[%clk 0:00:06]}  a4 {[%clk 0:00:16]} 63. c5 {[%clk 0:00:06]}  a3 {[%clk 0:00:12]} 64. cxb6 {[%clk 0:00:06]}  a2 {[%clk 0:00:13]} 65. b7 {[%clk 0:00:07]}  a1=Q {[%clk 0:00:13]} 66. b8=Q {[%clk 0:00:07]}  Qd1+ {[%clk 0:00:13]} 67. Kc6 {[%clk 0:00:07]}  Qc2+ {[%clk 0:00:13]} 68. Kb7 {[%clk 0:00:07]}  Qe4+ {[%clk 0:00:13]} 69. Ka7 {[%clk 0:00:07]}  Qa4+ {[%clk 0:00:13]} 70. Kb7 {[%clk 0:00:07]}  Qxb5+ {[%clk 0:00:13]} 71. Kc8 {[%clk 0:00:06]}  Qe8+ {[%clk 0:00:13]} 72. Kb7 {[%clk 0:00:06]}  Qe7+ {[%clk 0:00:13]} 73. Qc7 {[%clk 0:00:06]}  Qb4+ {[%clk 0:00:13]} 74. Qb6+ {[%clk 0:00:06]}  Qxb6+ {[%clk 0:00:13]} 75. Kxb6 {[%clk 0:00:06]} 1/2-1/2


[Site "https://www.chess.com"]